bitfinex-derivatives/quotes_SOLF0:USTF0_20260129
["timestamp","ask_amount","ask_price","bid_price","bid_amount"]
[1769661046578,11.83507983,123.01,122.96,4.54740723]
[1769661046781,7.0527743,123.03,122.98,4.55827141]
[1769661047686,4.50727983,123.03,122.98,4.55827141]
[1769661049282,9.86722412,123.05,122.98,14.42949553]
[1769661049485,8.9941752,123.06,123.0,7.11074966]
[1769661050090,20.82625503,123.06,123.0,14.43914966]
[1769661050292,4.50727983,123.05,123.0,7.11074966]
[1769661051988,4.50727983,123.05,123.0,14.43894966]
[1769661052696,4.50727983,123.05,123.01,2.54182412]
[1769661053902,8.9941752,123.06,123.01,7.13621163]
[1769661054197,13.50145503,123.06,123.01,7.13621163]
[1769661054693,8.9941752,123.06,123.02,7.13621163]
[1769661055696,8.9941752,123.06,123.02,4.59438751]
[1769661056199,13.8432321,123.06,123.01,7.3277]
[1769661056403,16.38505622,123.06,123.0,4.60881077]
[1769661056595,4.8490569,123.05,123.0,4.60881077]
[1769661056800,11.53599932,123.06,122.97,2.54182412]
[1769661056801,4.8490569,123.03,122.97,2.54182412]
[1769661056997,4.8490569,123.03,122.97,11.94337673]
[1769661056998,14.71748102,123.03,122.97,11.94337673]
[1769661058199,14.71678102,123.05,122.99,4.61828499]
[1769661058396,12.1749569,123.05,122.99,7.16010911]
[1769661058700,14.71678102,123.05,122.99,4.61828499]
[1769661059001,4.8490569,123.04,122.99,4.61828499]
[1769661062899,7.39088102,123.04,122.99,4.61828499]
[1769661064598,4.8490569,123.03,122.98,9.87142412]
[1769661064802,4.8490569,123.03,122.98,7.3296]
[1769661065097,7.39088102,123.03,122.97,11.9756353]
[1769661065293,2.54182412,123.02,122.97,11.9756353]
[1769661067503,7.39088102,123.03,122.98,4.65831939]
[1769661070097,2.54182412,123.03,122.98,11.98781939]
[1769661070304,14.71628102,123.05,122.99,4.67078346]
[1769661070604,14.71628102,123.05,122.99,7.21260758]
[1769661071204,12.1744569,123.05,122.99,7.21260758]
[1769661071405,14.71628102,123.05,122.99,7.21260758]
[1769661072604,14.71628102,123.05,122.99,4.67078346]
[1769661072804,14.71628102,123.05,122.99,7.21260758]
[1769661073000,14.71628102,123.05,123.0,4.68282516]
[1769661073001,4.8490569,123.05,123.0,4.68282516]
[1769661073805,7.39088102,123.05,123.0,4.68282516]
[1769661075800,4.8490569,123.05,123.0,4.68282516]
[1769661076602,7.39088102,123.05,123.0,4.68282516]
[1769661078709,4.8490569,123.05,123.0,12.01112516]
[1769661079007,8.9941752,123.06,123.02,4.70576521]
[1769661079601,8.9941752,123.06,123.02,7.24758933]
[1769661080204,8.9941752,123.06,123.02,12.03296521]
[1769661087319,8.9941752,123.06,123.02,14.57478933]
[1769661087518,8.9941752,123.06,123.02,12.03296521]
[1769661092017,8.9941752,123.06,123.02,14.57478933]
[1769661092921,16.37628962,123.06,123.0,4.76022141]
[1769661093117,16.37628962,123.06,122.98,7.30204553]
[1769661093118,4.8402903,123.04,122.98,7.30204553]
[1769661093323,4.8402903,123.04,122.99,4.76022141]
[1769661094326,4.8402903,123.04,122.99,7.30204553]
[1769661094626,8.9941752,123.06,123.03,4.76623618]
[1769661097036,8.9941752,123.06,123.02,9.86892412]
[1769661098435,8.9941752,123.06,123.02,14.64395585]
[1769661098935,8.9941752,123.06,123.03,12.10436285]
[1769661099132,4.8402903,123.09,123.04,7.31968697]
[1769661099937,4.8402903,123.09,123.04,4.77786285]
[1769661100424,4.8402903,123.09,123.04,7.3259]
[1769661106742,4.8402903,123.09,123.04,12.12547986]
[1769661107536,323.65211086,123.11,123.05,14.66660398]
[1769661107737,323.65211086,123.11,123.05,12.12477986]
[1769661107935,4.8402903,123.1,123.05,12.12477986]
[1769661109142,7.38211442,123.1,123.05,12.12477986]
[1769661109543,4.8402903,123.1,123.05,12.12477986]
[1769661111847,316.26999644,123.11,123.06,12.1366801]
[1769661112744,321.11028674,123.11,123.06,12.1366801]
[1769661112945,4.8402903,123.1,123.04,14.67865447]
[1769661113344,7.37894339,123.1,123.05,4.81460138]
[1769661114348,7.37894339,123.1,123.05,12.13990138]
[1769661115248,4.8402903,123.1,123.05,12.13990138]
[1769661116747,7.37894339,123.1,123.05,12.13990138]
[1769661117550,7.34491281,123.09,123.03,7.3263]
[1769661117846,4.80625972,123.07,123.02,4.82750056]
[1769661118245,4.80625972,123.07,123.02,12.15460056]
[1769661120155,4.80625972,123.07,123.02,4.82750056]
[1769661121051,7.34491281,123.07,123.02,4.82750056]
[1769661121352,7.34491281,123.06,123.0,7.37287496]
[1769661121549,2.53865309,123.05,123.0,4.83422187]
[1769661122451,7.34491281,123.06,123.0,4.83422187]
[1769661122848,2.53865309,123.06,123.01,4.83859499]
[1769661124359,2.53865309,123.06,123.01,12.16639499]
[1769661126153,2.53865309,123.06,123.02,4.84504659]
[1769661127459,2.53865309,123.07,123.02,4.84504659]
[1769661128960,2.53865309,123.06,123.02,4.84504659]
[1769661129255,7.34491281,123.06,123.0,4.85121346]
[1769661130354,7.34491281,123.06,123.01,4.85323248]
[1769661130760,2.53865309,123.05,123.01,4.85323248]
[1769661130960,2.53865309,123.05,123.01,12.18093248]
[1769661131554,7.34491281,123.06,123.01,12.18093248]
[1769661131861,2.53865309,123.08,123.03,4.85720472]
[1769661132960,2.53865309,123.08,123.03,12.18360472]
[1769661133157,2.53865309,123.07,123.03,12.18360472]
[1769661133359,2.53865309,123.07,123.03,4.85720472]
[1769661135764,7.34491281,123.08,123.03,4.85720472]
[1769661137167,2.53865309,123.09,123.04,4.86670008]
[1769661137563,2.53865309,123.08,123.04,4.86670008]
[1769661138259,4.80625972,123.09,123.04,4.86670008]
[1769661138466,12.12925972,123.09,123.04,4.86670008]
[1769661139170,14.66791281,123.09,123.04,4.86670008]
[1769661140865,7.34491281,123.09,123.04,4.86670008]
[1769661141471,4.80625972,123.09,123.04,4.86670008]
[1769661141772,7.34491281,123.09,123.04,4.86670008]
[1769661145365,7.24342752,123.08,123.02,4.66851191]
[1769661145569,7.24342752,123.07,123.02,4.66851191]
[1769661146371,4.70477443,123.06,123.01,7.3272]
[1769661146560,7.24342752,123.06,123.01,7.3272]
[1769661146965,7.24342752,123.06,123.01,11.99571191]
[1769661148269,7.24342752,123.02,122.97,4.66851191]
[1769661149566,7.3179058,123.0,122.95,4.76686564]
[1769661149970,2.53865309,122.98,122.93,4.76686564]
[1769661150276,2.53865309,123.01,122.95,4.76686564]
[1769661151073,2.53865309,123.01,122.95,7.30551873]
[1769661151265,2.53865309,123.01,122.96,4.76686564]
[1769661151468,4.77925271,123.02,122.96,4.76686564]
[1769661151772,2.53865309,123.01,122.96,4.76686564]
[1769661152472,7.3179058,123.01,122.96,4.76686564]
[1769661153374,2.53865309,123.0,122.96,4.76686564]
[1769661154172,4.77925271,123.01,122.96,4.76686564]
[1769661154377,7.3179058,123.01,122.96,4.76686564]
[1769661154873,7.3179058,123.01,122.95,7.3313]
[1769661155572,7.3179058,123.01,122.95,12.09816564]
[1769661156574,2.53865309,123.0,122.95,12.09816564]
[1769661157278,7.3179058,122.99,122.95,7.3313]
[1769661157765,7.3179058,122.99,122.93,4.76686564]
[1769661157966,7.3179058,122.98,122.93,4.76686564]
[1769661158272,2.53865309,122.97,122.91,4.76686564]
[1769661158671,7.3179058,122.98,122.92,4.76686564]
[1769661158970,4.77925271,122.98,122.93,4.76686564]
[1769661159570,7.3179058,122.98,122.93,4.76686564]
[1769661161476,7.3179058,122.98,122.93,12.09936564]
[1769661162478,4.77925271,122.98,122.93,12.09936564]
[1769661162974,7.3179058,122.98,122.93,4.76686564]
[1769661163575,2.53865309,122.97,122.93,4.76686564]
[1769661163975,2.53865309,122.97,122.91,7.30551873]
[1769661164278,2.53865309,122.97,122.92,12.09996564]
[1769661164479,7.3179058,122.98,122.92,12.09996564]
[1769661165774,2.53865309,122.97,122.92,12.09996564]
[1769661167279,4.77925271,122.98,122.92,12.09996564]
[1769661167584,2.53865309,122.97,122.93,12.09916564]
[1769661167884,7.3179058,122.98,122.93,12.09916564]
[1769661168782,4.77925271,122.98,122.93,12.09916564]
[1769661170283,2.54377888,122.99,122.94,12.09866564]
[1769661171283,7.32303159,122.99,122.94,12.09866564]
[1769661171783,9.87217888,123.0,122.94,12.09866564]
[1769661171984,14.65143159,123.0,122.94,12.09866564]
[1769661172785,7.32303159,123.02,122.96,7.31064452]
[1769661173282,4.77925271,123.01,122.96,7.31064452]
[1769661174090,4.77925271,123.01,122.96,4.76686564]
[1769661174287,7.32303159,123.0,122.94,7.31064452]
[1769661174582,4.77925271,122.99,122.92,114.0693]
[1769661174784,2.54377888,122.93,122.88,4.76686564]
[1769661175290,7.32303159,122.94,122.88,4.76686564]
[1769661176289,7.32303159,122.94,122.9,7.3343]
[1769661177287,4.72512407,122.96,122.91,7.3334]
[1769661177493,4.72512407,122.96,122.91,11.98336463]
[1769661177989,4.72512407,122.96,122.91,4.64996463]
[1769661177990,7.26890295,122.96,122.91,4.64996463]
[1769661178584,2.54377888,122.94,122.89,11.98436463]
[1769661180191,7.26890295,122.95,122.89,11.98436463]
[1769661181088,14.59910295,122.97,122.9,14.52804351]
[1769661181292,14.59910295,122.97,122.9,7.19374351]
[1769661181592,14.59910295,122.97,122.91,7.19374351]
[1769661182398,14.59910295,122.97,122.91,11.98356463]
[1769661182694,4.72512407,122.97,122.92,7.19374351]
[1769661182901,4.72512407,122.97,122.92,14.52684351]
[1769661183608,4.72512407,122.97,122.92,7.19374351]
[1769661183909,7.26890295,122.97,122.92,4.64996463]
[1769661184108,4.72512407,122.97,122.92,4.64996463]
[1769661186712,12.05532407,122.97,122.92,4.64996463]
[1769661187104,14.59910295,122.97,122.92,4.64996463]
[1769661188711,14.59910295,122.97,122.91,9.87747888]
[1769661189913,14.59910295,122.97,122.91,14.52744351]
[1769661191214,12.05532407,122.97,122.91,14.52744351]
[1769661192413,4.72512407,122.97,122.92,4.64996463]
[1769661195613,7.3301,122.98,122.92,14.52674351]
[1769661195817,4.72512407,122.99,122.94,7.19374351]
[1769661197020,7.3288,123.0,122.95,2.54377888]
[1769661199117,7.3288,123.0,122.94,14.52564351]
[1769661200020,12.05392407,123.0,122.94,14.52564351]
[1769661200819,4.72512407,123.0,122.94,14.52564351]
[1769661201923,4.72512407,123.0,122.95,7.3313]
[1769661202820,4.72512407,123.0,122.95,11.98126463]
[1769661203425,4.72512407,123.0,122.95,4.64996463]
[1769661205426,4.72512407,123.0,122.95,14.52494351]
[1769661208131,323.30095396,123.02,122.92,114.0693]
[1769661208132,328.284565,123.02,122.96,14.84244405]
[1769661208837,318.41358612,123.02,122.97,14.84257572]
[1769661209436,313.42997508,123.02,122.98,7.3295]
[1769661209831,290.97402854,123.04,122.98,9.87327888]
[1769661210135,5.06374966,123.03,122.98,9.87327888]
[1769661212235,5.06374966,123.03,122.98,7.3295]
[1769661214329,7.60752854,123.03,122.98,7.3295]
[1769661214735,2.54377888,123.02,122.97,4.96869684]
[1769661216330,2.54377888,123.02,122.97,12.29879684]
[1769661217339,2.54377888,123.02,122.98,4.97238092]
[1769661218236,2.54377888,123.04,122.99,4.97304542]
[1769661219942,2.54377888,123.03,122.99,4.97304542]
[1769661220139,12.38924966,123.05,122.99,4.97304542]
[1769661220341,2.54377888,123.03,122.99,12.30194542]
[1769661220530,2.54377888,123.04,122.99,12.30194542]
[1769661222445,7.60752854,123.04,122.99,12.30194542]
[1769661223041,7.60752854,123.03,122.97,12.16309796]
[1769661224153,7.60752854,123.03,122.98,4.79944733]
[1769661229052,5.06374966,123.03,122.98,4.79944733]
[1769661229650,5.06374966,123.03,122.98,12.12904733]
[1769661231553,7.60536162,123.03,122.98,12.12904733]
[1769661235855,9.86791196,123.04,122.99,4.41850441]
[1769661236443,2.54161196,123.04,122.99,11.74740441]
[1769661236654,7.14541706,123.05,122.99,11.74740441]
[1769661239747,14.47081706,123.05,122.99,11.74740441]
[1769661240757,2.54161196,123.04,122.99,11.74740441]
[1769661242158,7.14541706,123.05,123.0,4.2203548]
[1769661242355,12.20457322,123.07,123.02,6.76196676]
[1769661242560,316.332867,123.08,123.03,4.2203548]
[1769661243456,316.332867,123.08,123.03,11.5468548]
[1769661244057,316.332867,123.08,123.04,6.70823399]
[1769661244258,4.6038051,123.1,123.05,2.54161196]
[1769661245059,4.6038051,123.09,123.03,2.54161196]
[1769661245253,4.6038051,123.08,123.02,6.68182959]
[1769661245458,7.14541706,123.07,123.01,6.68182959]
[1769661245650,7.14541706,123.07,123.01,4.14021763]
[1769661245855,14.46961706,123.07,123.01,11.46791763]
[1769661247263,14.46961706,123.07,123.01,14.00952959]
[1769661247758,14.46961706,123.07,123.01,6.68182959]
[1769661248260,14.46961706,123.07,123.01,4.14021763]
[1769661248464,11.9280051,123.07,123.01,4.14021763]
[1769661248755,4.6038051,123.09,123.04,6.60442218]
[1769661249157,4.6038051,123.09,123.04,4.06281022]
[1769661249352,4.6038051,123.09,123.04,6.60442218]
[1769661250555,4.6038051,123.1,123.04,13.93032218]
[1769661250755,7.14541706,123.12,123.06,6.52965156]
[1769661251766,7.14541706,123.12,123.06,3.9880396]
[1769661252353,11.9252051,123.12,123.06,3.9880396]
[1769661252559,14.46681706,123.12,123.06,3.9880396]
[1769661253565,7.60076812,123.14,123.01,113.9842]
[1769661253566,7.14541706,123.1,123.04,6.48122487]
[1769661253868,7.14541706,123.1,123.04,3.93961291]
[1769661254470,7.14541706,123.1,123.04,13.80712487]
[1769661254857,4.6038051,123.1,123.04,13.80712487]
[1769661255671,4.6038051,123.15,123.08,3.86903884]
[1769661255865,7.60076812,123.16,123.08,3.86903884]
[1769661255866,4.6038051,123.13,123.08,3.86903884]
[1769661256064,7.14541706,123.13,123.08,3.86903884]
[1769661256762,7.14541706,123.11,123.05,11.17095248]
[1769661257266,2.54161196,123.1,123.05,3.84605248]
[1769661258468,7.14541706,123.11,123.05,3.84605248]
[1769661259059,4.6038051,123.11,123.05,3.84605248]
[1769661259257,7.14541706,123.11,123.05,11.17135248]
[1769661259663,2.54161196,123.1,123.05,11.17135248]
[1769661261075,4.6038051,123.11,123.05,11.17135248]
[1769661261276,2.54161196,123.1,123.05,11.17135248]
[1769661261470,2.54161196,123.1,123.06,3.75671708]
[1769661262270,7.14541706,123.11,123.06,3.75671708]
[1769661262876,2.54161196,123.1,123.06,3.75671708]
[1769661263268,7.14541706,123.11,123.06,11.08141708]
[1769661264872,4.6038051,123.11,123.06,11.08141708]
[1769661265075,7.14541706,123.11,123.06,11.08141708]
[1769661265779,2.54161196,123.1,123.06,11.08141708]
[1769661266376,4.6038051,123.11,123.06,11.08141708]
[1769661266579,2.54161196,123.1,123.06,11.08141708]
[1769661268968,2.54161196,123.11,123.07,10.87400195]
[1769661269188,4.14813389,123.14,123.08,3.54990195]
[1769661269189,2.54161196,123.13,123.08,3.54990195]
[1769661269774,6.68974585,123.13,123.08,3.54990195]
[1769661271880,2.54161196,123.12,123.08,3.54990195]
[1769661275981,6.68974585,123.13,123.08,3.54990195]
[1769661276384,4.14813389,123.13,123.08,3.54990195]
[1769661276578,6.68974585,123.13,123.08,3.54990195]
[1769661282483,2.54161196,123.13,123.08,3.54990195]
[1769661282878,6.68974585,123.13,123.08,3.54990195]
[1769661283076,6.68974585,123.13,123.08,10.87330195]
[1769661283881,6.68974585,123.13,123.08,3.54990195]
[1769661284193,2.54161196,123.12,123.08,3.54990195]
[1769661287791,7.60076812,123.16,123.05,113.9484]
[1769661287792,6.68974585,123.1,123.05,7.3248]
[1769661287978,4.14813389,123.1,123.05,10.5430786]
[1769661289179,2.54161196,123.11,123.06,3.20276007]
[1769661289582,6.68974585,123.11,123.06,3.20276007]
[1769661290192,4.14813389,123.11,123.06,3.20276007]
[1769661290394,4.14813389,123.13,123.08,2.54161196]
[1769661291583,4.14813389,123.13,123.08,2.53742926]
[1769661297989,4.14813389,123.13,123.07,13.04884903]
[1769661299902,4.13348059,123.12,123.07,13.04884903]
[1769661300601,11.73424871,123.14,123.09,7.323]
[1769661300806,11.73424871,123.14,123.08,3.02931053]
[1769661300807,4.13348059,123.13,123.08,3.02931053]
[1769661301602,4.13348059,123.12,123.06,10.34035693]
[1769661301807,6.67090985,123.11,123.05,5.54018597]
[1769661302008,6.67090985,123.11,123.05,3.00275671]
[1769661302410,6.67090985,123.11,123.05,5.54018597]
[1769661302618,14.27167797,123.13,123.07,5.54018597]
[1769661302809,4.13348059,123.13,123.07,5.54018597]
[1769661303310,4.13348059,123.13,123.08,2.53742926]
[1769661305610,4.13348059,123.13,123.07,12.86408597]
[1769661305911,14.27167797,123.13,123.07,10.32665671]
[1769661306312,2.53742926,123.12,123.07,10.32665671]
[1769661306512,6.67090985,123.12,123.07,10.32665671]
[1769661307415,6.67090985,123.1,123.05,10.26399534]
[1769661307816,4.13348059,123.1,123.05,10.26399534]
[1769661309320,4.13348059,123.1,123.05,12.8014246]
[1769661309813,17.45969738,123.12,123.05,9.86242926]
[1769661310021,11.73424871,123.12,123.06,12.76459864]
[1769661310620,4.13348059,123.12,123.06,12.76459864]
[1769661311016,4.13348059,123.12,123.07,2.89057268]
[1769661311217,4.13348059,123.11,123.05,5.42800194]
[1769661311821,4.13348059,123.11,123.06,2.53742926]
[1769661312224,4.13348059,123.11,123.06,5.41624188]
[1769661313022,14.92146812,123.13,123.08,5.4046169]
[1769661313023,4.13348059,123.13,123.08,5.4046169]
[1769661313822,4.13348059,123.13,123.09,2.53742926]
[1769661314723,4.13348059,123.13,123.08,2.53742926]
[1769661315026,4.13348059,123.12,123.07,9.86152926]
[1769661315227,11.73424871,123.14,123.08,5.38176597]
[1769661315529,11.73424871,123.14,123.09,2.53742926]
[1769661315530,4.13348059,123.14,123.09,2.53742926]
[1769661315825,11.73424871,123.14,123.09,2.53742926]
[1769661318427,4.13348059,123.12,123.07,7.3241]
[1769661318727,11.45358059,123.14,123.09,2.53742926]
[1769661319124,4.13348059,123.13,123.09,2.53742926]
[1769661319718,4.13348059,123.13,123.08,2.81103517]
[1769661320020,4.13348059,123.13,123.08,5.34846443]
[1769661321828,4.13348059,123.13,123.09,2.53742926]
[1769661324130,7.3201,123.14,123.09,5.28522584]
[1769661324430,11.45358059,123.14,123.09,5.28522584]
[1769661326132,4.13348059,123.14,123.11,2.53742926]
[1769661326433,3.63985335,123.16,123.11,2.53742926]
[1769661327631,3.63985335,123.16,123.1,12.5697327]
[1769661328729,3.63985335,123.15,123.09,5.21837052]
[1769661329439,3.8896485,123.14,123.09,5.21837052]
[1769661330038,3.8896485,123.14,123.09,12.54137052]
[1769661330639,3.8896485,123.14,123.09,10.00394126]
[1769661331340,9.85692926,123.15,123.1,2.6539929]
[1769661331737,13.74657776,123.15,123.1,2.6539929]
[1769661335242,6.42707776,123.14,123.09,7.323]
[1769661335638,6.42707776,123.13,123.08,7.3233]
[1769661336341,3.8896485,123.13,123.08,7.3233]
[1769661336546,3.8896485,123.13,123.08,9.93276271]
[1769661336938,6.42707776,123.13,123.08,9.93276271]
[1769661337646,3.8896485,123.13,123.08,9.93276271]
[1769661338942,2.53742926,123.12,123.08,2.60946271]
[1769661339148,6.42707776,123.12,123.06,9.90845341]
[1769661340240,6.42707776,123.12,123.07,7.3242]
[1769661344754,11.49041662,123.14,123.08,2.53551203]
[1769661344956,6.42707776,123.13,123.08,2.53551203]
[1769661346955,6.08076023,123.12,123.08,2.53551203]
[1769661347257,6.42707776,123.13,123.08,2.53551203]
[1769661347553,14.02784588,123.15,123.09,2.52009682]
[1769661347750,6.08172876,123.14,123.09,2.52009682]
[1769661347952,6.08172876,123.13,123.09,2.52009682]
[1769661348153,6.08172876,123.12,123.09,2.52009682]
[1769661348349,14.02784588,123.15,123.09,2.52009682]
[1769661348350,21.34734588,123.15,123.09,2.52009682]
[1769661348550,6.0814873,123.14,123.09,2.52009682]
[1769661348856,6.0814873,123.13,123.09,2.52009682]
[1769661349153,21.34734588,123.15,123.09,2.52009682]
[1769661349353,6.08127385,123.14,123.09,2.52009682]
[1769661349550,6.08127385,123.13,123.09,2.52009682]
[1769661349751,6.08127385,123.12,123.09,2.52009682]
[1769661349953,21.34734588,123.15,123.09,2.52009682]
[1769661350158,6.08136462,123.14,123.09,2.52009682]
[1769661350350,6.08136462,123.13,123.09,2.52009682]
[1769661350550,6.08136462,123.12,123.09,2.52009682]
[1769661350749,21.34734588,123.15,123.09,2.52009682]
[1769661350951,6.08124065,123.14,123.09,2.52009682]
[1769661351149,6.08124065,123.13,123.09,2.52009682]
[1769661351350,6.08124065,123.12,123.09,2.52009682]
[1769661351561,6.42687779,123.14,123.09,2.52009682]
[1769661351760,12.50802539,123.13,123.08,7.3235]
[1769661351962,12.50802539,123.13,123.08,9.80658164]
[1769661351963,6.0811476,123.12,123.08,9.80658164]
[1769661352158,3.8896485,123.13,123.08,9.80658164]
[1769661352364,6.08125199,123.12,123.09,7.3228]
[1769661352565,3.8896485,123.13,123.09,7.3228]
[1769661353464,6.42687779,123.13,123.09,7.3228]
[1769661353664,3.8896485,123.13,123.09,7.3228]
[1769661353868,3.8896485,123.09,123.04,2.46886394]
[1769661354062,2.53722929,123.08,123.04,2.46886394]
[1769661354865,2.53722929,123.08,123.04,9.79486394]
[1769661355268,6.42687779,123.09,123.04,9.79486394]
[1769661357466,6.42687779,123.09,123.04,334.23486394]
[1769661357765,6.42687779,123.09,123.04,9.79486394]
[1769661360365,3.8896485,123.09,123.04,9.79486394]
[1769661360667,2.53722929,123.1,123.05,2.41699082]
[1769661360967,3.84298467,123.12,123.06,4.95422011]
[1769661361673,3.84298467,123.12,123.07,2.53722929]
[1769661362465,3.84298467,123.12,123.07,9.86132929]
[1769661364470,6.05716644,123.11,123.07,9.86132929]
[1769661364875,3.84298467,123.12,123.07,9.86132929]
[1769661365064,6.0571695,123.11,123.07,9.86132929]
[1769661365372,3.84298467,123.12,123.07,9.86132929]
[1769661365572,6.05708045,123.11,123.07,9.86132929]
[1769661366374,3.84298467,123.12,123.07,9.86132929]
[1769661366573,6.05690856,123.11,123.07,9.86132929]
[1769661366872,3.84298467,123.12,123.07,9.86132929]
[1769661367172,6.05690856,123.11,123.07,9.86132929]
[1769661367373,3.84298467,123.12,123.07,9.86132929]
[1769661367674,6.05593829,123.11,123.07,9.86132929]
[1769661367873,6.05593829,123.11,123.06,2.41699082]
[1769661367874,11.16308467,123.14,123.09,4.91112839]
[1769661368173,6.05588706,123.13,123.1,2.53722929]
[1769661368379,6.05588706,123.12,123.1,2.53722929]
[1769661368572,11.16308467,123.14,123.1,2.53722929]
[1769661368766,6.05594436,123.13,123.1,2.53722929]
[1769661369076,6.05594436,123.12,123.1,2.53722929]
[1769661369267,11.16308467,123.14,123.09,4.91112839]
[1769661369468,6.05588719,123.13,123.09,4.91112839]
[1769661369668,6.05588719,123.12,123.09,4.91112839]
[1769661369869,11.16308467,123.14,123.09,4.91112839]
[1769661370071,6.05590244,123.13,123.09,4.91112839]
[1769661370369,6.05590244,123.12,123.09,4.91112839]
[1769661370578,11.16308467,123.14,123.09,4.91112839]
[1769661370780,6.05590985,123.13,123.09,4.91112839]
[1769661370988,6.05590985,123.12,123.09,4.91112839]
[1769661371188,11.16308467,123.14,123.09,4.91112839]
[1769661371492,6.05597928,123.13,123.09,4.91112839]
[1769661371787,6.05597928,123.12,123.09,4.91112839]
[1769661371983,11.16308467,123.14,123.09,4.91112839]
[1769661372185,6.05628203,123.13,123.09,4.91112839]
[1769661372385,6.05628203,123.12,123.09,4.91112839]
[1769661372589,11.16308467,123.14,123.09,4.91112839]
[1769661372790,6.05648645,123.13,123.09,4.91112839]
[1769661373088,6.05648645,123.12,123.09,4.91112839]
[1769661373289,11.16308467,123.14,123.09,4.91112839]
[1769661373590,6.05708815,123.13,123.09,4.91112839]
[1769661373784,6.05708815,123.12,123.09,4.91112839]
[1769661373984,11.16308467,123.14,123.09,4.91112839]
[1769661374286,6.05708815,123.13,123.09,4.91112839]
[1769661374488,6.05708815,123.12,123.09,4.91112839]
[1769661374679,11.16308467,123.14,123.09,4.91112839]
[1769661374876,6.05730235,123.13,123.09,4.91112839]
[1769661375083,11.16308467,123.14,123.09,4.91112839]
[1769661375084,6.05730235,123.12,123.09,4.91112839]
[1769661375284,11.16308467,123.14,123.09,4.91112839]
[1769661375490,6.0575589,123.13,123.09,4.91112839]
[1769661375692,6.0575589,123.12,123.09,4.91112839]
[1769661375989,11.16308467,123.14,123.09,4.91112839]
[1769661376188,6.0575589,123.13,123.09,4.91112839]
[1769661376383,6.0575589,123.12,123.09,4.91112839]
[1769661376582,11.16308467,123.14,123.09,4.91112839]
[1769661376790,6.05778528,123.13,123.09,4.91112839]
[1769661377090,6.05778528,123.12,123.09,4.91112839]
[1769661377289,11.16308467,123.14,123.09,2.3738991]
[1769661377489,6.05807644,123.13,123.09,2.3738991]
[1769661377689,6.05807644,123.12,123.09,2.3738991]
[1769661377986,11.16308467,123.14,123.09,2.3738991]
[1769661378188,6.05821855,123.13,123.09,2.3738991]
[1769661378394,6.05821855,123.12,123.09,2.3738991]
[1769661378585,11.16308467,123.14,123.09,2.3738991]
[1769661378786,6.05837838,123.13,123.09,2.3738991]
[1769661379085,6.05837838,123.12,123.09,2.3738991]
[1769661379285,11.16308467,123.14,123.09,2.3738991]
[1769661379484,6.05866822,123.13,123.09,2.3738991]
[1769661379784,6.05866822,123.12,123.09,2.3738991]
[1769661379984,11.16308467,123.14,123.09,2.3738991]
[1769661380192,6.058645,123.13,123.09,2.3738991]
[1769661380392,6.058645,123.12,123.09,2.3738991]
[1769661380594,11.16308467,123.14,123.09,2.3738991]
[1769661380788,6.05903435,123.13,123.09,2.3738991]
[1769661380988,6.05903435,123.12,123.09,2.3738991]
[1769661381190,11.16308467,123.14,123.09,2.3738991]
[1769661381386,6.05904902,123.13,123.09,2.3738991]
[1769661381687,6.05904902,123.12,123.09,2.3738991]
[1769661381886,3.84298467,123.13,123.09,2.3738991]
[1769661382092,6.05904838,123.12,123.09,2.3738991]
[1769661382695,6.05904838,123.12,123.08,9.86072929]
[1769661383096,3.84298467,123.13,123.08,9.86072929]
[1769661383097,6.05889232,123.11,123.08,9.86072929]
[1769661383388,3.84298467,123.13,123.08,9.86072929]
[1769661383597,6.0591784,123.12,123.08,12.15322862]
[1769661383782,3.84298467,123.13,123.08,12.15322862]
[1769661383984,6.05913271,123.12,123.08,12.15322862]
[1769661384293,6.05913271,123.11,123.08,12.15322862]
[1769661384494,3.84298467,123.13,123.08,12.15322862]
[1769661384794,6.05906439,123.12,123.08,12.15322862]
[1769661384984,6.05906439,123.11,123.08,12.15322862]
[1769661385181,3.84298467,123.13,123.08,12.15322862]
[1769661385385,6.05915895,123.12,123.08,12.15322862]
[1769661385591,3.84298467,123.13,123.08,12.15322862]
[1769661385794,6.05879885,123.12,123.08,12.15322862]
[1769661386392,6.05879885,123.12,123.08,9.61599933]
[1769661393100,6.05879885,123.12,123.08,12.15322862]
[1769661395402,6.05879885,123.12,123.08,9.61599933]
[1769661397803,6.05879885,123.12,123.08,12.15322862]
[1769661398712,3.84298467,123.13,123.08,12.15322862]
[1769661398898,6.04908128,123.12,123.08,12.15322862]
[1769661399200,3.84298467,123.13,123.08,12.15322862]
[1769661399507,6.05078913,123.12,123.09,324.42]
[1769661399697,3.84298467,123.13,123.09,324.42]
[1769661399897,6.05083038,123.12,123.09,324.42]
[1769661400093,3.84298467,123.13,123.09,324.42]
[1769661400298,6.05178611,123.12,123.09,324.42]
[1769661400498,3.84298467,123.13,123.09,324.42]
[1769661400697,6.05354148,123.12,123.09,324.42]
[1769661400904,3.84298467,123.13,123.09,324.42]
[1769661401207,6.05353658,123.12,123.09,324.42]
[1769661401510,3.84298467,123.13,123.09,324.42]
[1769661401707,6.0548305,123.12,123.09,324.42]